fUSD/lending_fUSD_20250326
["ID","MTS","AMOUNT","RATE_DAILY","PERIOD"]
[356711263,1743000657236,-500.0,0.00028219,2]
[356711264,1743000657247,-500.0,0.00028219,2]
[356711265,1743000657256,-500.0,0.00028219,2]
[356711266,1743000657266,-500.0,0.00028219,2]
[356711267,1743000657275,-500.0,0.00028219,2]
[356711268,1743000657286,-500.0,0.00028219,2]
[356711269,1743000657295,-997.97,0.00028219,2]
[356711270,1743000657304,-500.0,0.00028219,2]
[356711271,1743000657314,-500.0,0.00028219,2]
[356711272,1743000657323,-500.0,0.00028219,2]
[356711273,1743000657332,-500.0,0.00028219,2]
[356711274,1743000657342,-500.0,0.00028219,2]
[356711275,1743000657352,-3938.33254643,0.00028219,2]
[356711276,1743000657579,-150.99,0.00027469,2]
[356711277,1743000657589,-299.1796604,0.00028219,2]
[356711278,1743000657601,-475.85322482,0.00028219,2]
[356711279,1743000657613,-978.56456835,0.00028219,2]
[356711280,1743000657622,-248.12122333,0.00028219,2]
[356711281,1743000657632,-500.0,0.00028219,2]
[356711282,1743000657642,-500.0,0.00028219,2]
[356711283,1743000657651,-500.0,0.00028219,2]
[356711284,1743000657661,-1045.37,0.00028219,2]
[356711285,1743000657671,-500.0,0.00028219,2]
[356711286,1743000657680,-500.0,0.00028219,2]
[356711287,1743000657690,-500.0,0.00028219,2]
[356711288,1743000657700,-500.0,0.00028219,2]
[356711289,1743000657709,-318.98105196,0.00028219,2]
[356711290,1743000657720,-500.0,0.00028219,2]
[356711291,1743000657730,-513.61,0.00028219,2]
[356711292,1743000657739,-233.79739918,0.00028219,2]
[356711293,1743000657748,-1360.65,0.00028219,2]
[356711294,1743000657758,-500.0,0.00028219,2]
[356711295,1743000657768,-500.0,0.00028219,2]
[356711296,1743000657777,-500.0,0.00028219,2]
[356711297,1743000657787,-500.0,0.00028219,2]
[356711298,1743000657796,-500.0,0.00028219,2]
[356711299,1743000657806,-500.0,0.00028219,2]
[356711300,1743000657815,-605.21611806,0.00028219,2]
[356711301,1743000657824,-500.0,0.00028219,2]
[356711302,1743000657834,-1415.07,0.00028219,2]
[356711303,1743000657843,-5712.77,0.00028219,2]
[356711304,1743000657852,-538.13,0.00028219,2]
[356711305,1743000657862,-346.38778166,0.00028219,2]
[356711306,1743000657872,-500.0,0.00028219,2]
[356711307,1743000657881,-500.0,0.00028219,2]
[356711308,1743000657891,-500.0,0.00028219,2]
[356711309,1743000657899,-500.0,0.00028219,2]
[356711310,1743000657908,-151.0,0.00028219,7]
[356711311,1743000657917,-101.93135745,0.00028219,2]
[356711312,1743000657929,-398.06864255,0.00028219,2]
[356711313,1743000657938,-500.0,0.00028219,2]
[356711314,1743000657947,-500.0,0.00028219,2]
[356711315,1743000657956,-500.0,0.00028219,2]
[356711316,1743000657965,-500.0,0.00028219,2]
[356711317,1743000657975,-500.0,0.00028219,2]
[356711318,1743000657984,-592.75,0.00028219,2]
[356711319,1743000657993,-500.0,0.00028219,2]
[356711320,1743000658002,-576.16606756,0.00028219,2]
[356711321,1743000658012,-500.0,0.00028219,2]
[356711322,1743000658022,-500.0,0.00028219,2]
[356711323,1743000658032,-151.0,0.00028219,7]
[356711324,1743000658042,-151.0,0.00028219,7]
[356711325,1743000658052,-500.0,0.00028219,2]
[356711326,1743000658062,-179.06554115,0.00028219,2]
[356711327,1743000658071,-500.0,0.00028219,2]
[356711328,1743000658081,-3.88812607,0.00028219,2]
[356711329,1743000658097,-500.0,0.00027397,2]
[356711330,1743000658106,-496.11187393,0.00028219,2]
[356711331,1743000658249,-500.0,0.00028219,2]
[356711332,1743000658260,-500.0,0.00028219,2]
[356711333,1743000658270,-524.71445392,0.00028219,2]
[356711334,1743000658280,-500.0,0.00028219,2]
[356711335,1743000658293,-454.41367215,0.00028219,2]
[356711336,1743000658305,-45.58632785,0.00028219,2]
[356711337,1743000658315,-1633.73667233,0.00028219,2]
[356711338,1743000658326,-1826.47144555,0.00028219,2]
[356711339,1743000658338,-744.11188212,0.00028219,2]
[356711340,1743000658347,-500.0,0.00028219,2]
[356711341,1743000658357,-500.0,0.00028219,2]
[356711342,1743000658367,-500.0,0.00028219,2]
[356711343,1743000658377,-15122.83211788,0.00028219,2]
[356711344,1743000658389,-413.31604098,0.00028219,2]
[356711345,1743000658401,-492.95,0.00028219,2]
[356711346,1743000658630,-500.0,0.00027671,2]
[356711347,1743000658639,-151.0,0.00027671,7]
[356711348,1743000658650,-511.99054722,0.00027945,2]
[356711349,1743000658660,-45029.51184114,0.00028219,2]
[356711350,1743000658669,-500.0,0.00028219,2]
[356711351,1743000658679,-523.18653883,0.00028219,2]
[356711352,1743000658689,-500.0,0.00028219,2]
[356711353,1743000658699,-517.54278348,0.00028219,2]
[356711354,1743000658708,-500.0,0.00028219,2]
[356711355,1743000658718,-500.0,0.00028219,2]
[356711356,1743000658727,-500.0,0.00028219,2]
[356711357,1743000658737,-625.68152304,0.00028219,2]
[356711358,1743000658746,-500.0,0.00028219,2]
[356711359,1743000658756,-500.0,0.00028219,2]
[356711360,1743000658766,-500.0,0.00028219,2]
[356711361,1743000658776,-500.0,0.00028219,2]
[356711362,1743000658786,-500.0,0.00028219,2]
[356711363,1743000658796,-500.0,0.00028219,2]
[356711364,1743000658806,-500.0,0.00028219,2]
[356711365,1743000658815,-500.0,0.00028219,2]
[356711366,1743000658825,-500.0,0.00028219,2]
[356711367,1743000658835,-564.01049011,0.00028219,2]
[356711368,1743000658845,-1257.4,0.00028219,2]
[356711369,1743000658854,-500.0,0.00028219,2]
[356711370,1743000658864,-500.0,0.00028219,2]
[356711371,1743000658873,-520.40094021,0.00028219,2]
[356711372,1743000658883,-500.0,0.00028219,2]
[356711373,1743000658892,-812.02,0.00028219,2]
[356711374,1743000658902,-500.0,0.00028219,2]
[356711375,1743000658912,-500.0,0.00028219,2]
[356711376,1743000658922,-500.0,0.00028219,2]
[356711377,1743000658932,-500.0,0.00028219,2]
[356711378,1743000658942,-500.0,0.00028219,2]
[356711379,1743000658952,-151.0,0.00028219,7]
[356711380,1743000658962,-500.0,0.00028219,2]
[356711381,1743000658972,-166.10754005,0.00028219,2]
[356711382,1743000658982,-500.0,0.00028219,2]
[356711383,1743000658991,-1702.79,0.00028219,2]
[356711384,1743000659002,-1896.71,0.00028219,2]
[356711385,1743000659011,-500.0,0.00028219,2]
[356711386,1743000659020,-528.21006301,0.00028219,2]
[356711387,1743000659031,-559.24266878,0.00028219,2]
[356711388,1743000659042,-730.0,0.00028219,2]
[356711389,1743000659051,-535.69197515,0.00028219,2]
[356711390,1743000659061,-151.0,0.00028219,7]
[356711391,1743000659070,-500.0,0.00028219,2]
[356711392,1743000659081,-521.56383677,0.00028219,2]
[356711393,1743000659091,-151.0,0.00028219,7]
[356711394,1743000659101,-500.0,0.00028219,2]
[356711395,1743000659111,-500.0,0.00028219,2]
[356711396,1743000659122,-519.06992349,0.00028219,2]
[356711397,1743000659132,-500.0,0.00028219,2]
[356711398,1743000659142,-1516.35842902,0.00028219,2]
[356711399,1743000659152,-610.18189929,0.00028219,2]
[356711400,1743000659162,-589.63622228,0.00028219,2]
[356711401,1743000659171,-500.0,0.00028219,2]
[356711402,1743000659181,-156.794174,0.00028219,7]
[356711403,1743000659191,-500.0,0.00028219,2]
[356711404,1743000659201,-500.0,0.00028219,2]
[356711405,1743000659211,-500.0,0.00028219,2]
[356711406,1743000659221,-500.0,0.00028219,2]
[356711407,1743000659231,-531.91230622,0.00028219,2]
[356711408,1743000659241,-517.53301376,0.00028219,2]
[356711409,1743000659251,-628.41577275,0.00028219,2]
[356711410,1743000659262,-500.0,0.00028219,2]
[356711411,1743000659272,-500.0,0.00028219,2]
[356711412,1743000659282,-500.0,0.00028219,2]
[356711413,1743000659292,-538.25393287,0.00028219,2]
[356711414,1743000659302,-500.0,0.00028219,2]
[356711415,1743000659312,-500.0,0.00028219,2]
[356711416,1743000659323,-635.80005972,0.00028219,2]
[356711417,1743000659334,-500.0,0.00028219,2]
[356711418,1743000659345,-216.12440227,0.00028219,2]
[356711419,1743000659355,-500.0,0.00028219,2]
[356711420,1743000659365,-522.27,0.00028219,2]
[356711421,1743000659375,-500.0,0.00028219,2]
[356711422,1743000659385,-500.0,0.00028219,2]
[356711423,1743000659396,-500.0,0.00028219,2]
[356711424,1743000659406,-2032.32,0.00028219,2]
[356711425,1743000659416,-500.0,0.00028219,2]
[356711426,1743000659427,-500.0,0.00028219,2]
[356711427,1743000659437,-500.0,0.00028219,2]
[356711428,1743000659448,-500.0,0.00028219,2]
[356711429,1743000659462,-184.44241724,0.00028219,2]
[356711430,1743000659472,-500.0,0.00028219,2]
[356711431,1743000659482,-500.0,0.00028219,2]
[356711432,1743000659492,-536.45881252,0.00028219,2]
[356711433,1743000659502,-500.0,0.00028219,2]
[356711434,1743000659512,-1157.22,0.00028219,2]
[356711435,1743000659522,-150.73,0.00028236,2]
[356711436,1743000659534,-1282.0,0.00028239,2]
[356711437,1743000659545,-642.0,0.00028239,2]
[356711438,1743000659555,-2063.781,0.00028239,2]
[356711439,1743000659565,-152.834,0.00028239,2]
[356711440,1743000659575,-691.157,0.00028239,2]
[356711441,1743000659585,-1486.926,0.00028239,2]
[356711442,1743000659596,-788.0,0.00028239,2]
[356711443,1743000659605,-1273.0,0.00028239,2]
[356711444,1743000659615,-1463.38,0.00028239,2]
[356711445,1743000659625,-542.0,0.00028239,2]
[356711446,1743000659635,-4087.0,0.00028239,2]
[356711447,1743000659644,-907.0,0.00028239,2]
[356711448,1743000659654,-250.0,0.00028239,2]
[356711449,1743000659664,-3943.0,0.00028239,2]
[356711450,1743000659674,-214.65,0.00028239,2]
[356711451,1743000659683,-1015.0,0.00028239,2]
[356711452,1743000659693,-150.0,0.00028239,2]
[356711453,1743000659703,-150.0,0.00028239,2]
[356711454,1743000659713,-153.422,0.00028239,2]
[356711455,1743000659722,-1000.0,0.00028303,2]
[356711456,1743000659733,-9806.55040695,0.00028363,2]
[356711457,1743000659743,-5461.0530316,0.00028463,2]
[356711458,1743000659754,-203.774643,0.00028483,7]
[356711459,1743000659764,-565.83,0.00028492,2]
[356711460,1743000659774,-500.0,0.00028493,2]
[356711461,1743000659785,-500.0,0.00028493,2]
[356711462,1743000659795,-648.17,0.00028493,2]
[356711463,1743000659805,-500.0,0.00028493,2]
[356711464,1743000659814,-777.44,0.00028493,2]
[356711465,1743000659825,-500.0,0.00028493,2]
[356711466,1743000659835,-500.0,0.00028493,2]
[356711467,1743000659845,-500.0,0.00028493,2]
[356711468,1743000659854,-224.73864035,0.00028493,2]
[356711469,1743000659864,-560.70905626,0.00028493,2]
[356711470,1743000659878,-2202.90094374,0.00028493,2]
[356711471,1743000659887,-8280.89,0.00028493,2]
[356711472,1743000659896,-500.0,0.00028493,2]
[356711473,1743000659906,-500.0,0.00028493,2]
[356711474,1743000659915,-500.0,0.00028493,2]
[356711475,1743000659925,-500.0,0.00028493,2]
[356711476,1743000659934,-228.52204004,0.00028493,2]
[356711477,1743000659944,-630.63,0.00028493,2]
[356711478,1743000659953,-517.78,0.00028493,2]
[356711479,1743000659963,-500.0,0.00028493,2]
[356711480,1743000659973,-500.0,0.00028493,2]
[356711481,1743000659982,-500.0,0.00028493,2]
[356711482,1743000659992,-500.0,0.00028493,2]
[356711483,1743000660002,-500.0,0.00028493,2]
[356711484,1743000660011,-501.955293,0.00028493,2]
[356711485,1743000660020,-358.019512,0.00028493,2]
[356711486,1743000660030,-500.0,0.00028493,2]
[356711487,1743000660042,-166.033251,0.00028493,2]
[356711488,1743000660052,-500.0,0.00028493,2]
[356711489,1743000660062,-500.0,0.00028493,2]
[356711490,1743000660072,-500.0,0.00028493,2]
[356711491,1743000660083,-634.91780891,0.00028493,2]
[356711492,1743000660092,-500.0,0.00028493,2]
[356711493,1743000660102,-500.0,0.00028493,2]
[356711494,1743000660112,-500.0,0.00028493,2]
[356711495,1743000660122,-500.0,0.00028493,2]
[356711496,1743000660133,-500.0,0.00028493,2]
[356711497,1743000660142,-500.0,0.00028493,2]
[356711498,1743000660151,-622.18,0.00028493,2]
[356711499,1743000660160,-569.1315067,0.00028493,2]
[356711500,1743000660171,-500.0,0.00028493,2]
[356711501,1743000660180,-559.50470543,0.00028493,2]
[356711502,1743000660191,-500.0,0.00028493,2]
[356711503,1743000660200,-812.95413917,0.00028493,2]
[356711504,1743000660213,-1467.90801397,0.00028493,2]
[356711505,1743000660253,-5017.52784686,0.00028493,2]
[356711506,1743000660264,-500.0,0.00028493,2]
[356711507,1743000660275,-500.0,0.00028493,2]
[356711508,1743000660285,-174.57520106,0.00028493,2]
[356711509,1743000660296,-290.71756022,0.00028493,2]
[356711510,1743000660306,-500.0,0.00028493,2]
[356711511,1743000660316,-500.0,0.00028493,2]
[356711512,1743000660326,-1756.69,0.00028493,2]
[356711513,1743000660335,-500.0,0.00028493,2]
[356711514,1743000660346,-500.0,0.00028493,2]
[356711515,1743000660356,-507.45891299,0.00028493,2]
[356711516,1743000660366,-500.0,0.00028493,2]
[356711517,1743000660375,-495.92164429,0.00028493,2]
[356711518,1743000660385,-500.0,0.00028493,2]
[356711519,1743000660394,-500.0,0.00028493,2]
[356711520,1743000660404,-182.550443,0.00028493,2]
[356711521,1743000660414,-384.10246492,0.00028493,2]
[356711522,1743000660807,-700.09939995,0.00027197,2]
[356711523,1743000660820,-1799.90060005,0.00027197,2]
[356711524,1743000660829,-357.38302044,0.00027397,2]
[356711525,1743000663619,-142.61697956,0.00027397,2]
[356711526,1743000663629,-500.0,0.00027671,2]
[356711527,1743000663639,-151.0,0.00027945,7]
[356711528,1743000663649,-500.0,0.00027945,2]
[356711529,1743000663659,-500.0,0.00028493,2]
[356711530,1743000663669,-500.0,0.00028493,2]
[356711531,1743000663679,-500.0,0.00028493,2]
[356711532,1743000663689,-500.0,0.00028493,2]
[356711533,1743000663699,-500.0,0.00028493,2]
[356711534,1743000663709,-500.0,0.00028493,2]
[356711535,1743000663719,-187.52191781,0.00028493,2]
[356711536,1743000663773,-547.85404106,0.00028219,2]
[356711537,1743000663783,-652.14596394,0.00028493,2]
[356711538,1743000663796,-158.30211825,0.00028493,2]
[356711539,1743000663806,-500.0,0.00028493,2]
[356711540,1743000663816,-410.47972825,0.00028493,2]
[356711541,1743000663825,-500.0,0.00028493,2]
[356711542,1743000663835,-500.0,0.00028493,2]
[356711543,1743000663847,-500.0,0.00028493,2]
[356711544,1743000663857,-1467.90212582,0.00028493,2]
[356711545,1743000663869,-4224.02787418,0.00028493,2]
[356711546,1743000663879,-202.11420858,0.00028493,2]
[356711547,1743000663890,-500.0,0.00028493,2]
[356711548,1743000663899,-260.37792724,0.00028493,2]
[356711549,1743000663912,-239.62207276,0.00028493,2]
[356711550,1743000663921,-505.19757974,0.00028493,2]
[356711551,1743000663934,-540.17242026,0.00028493,2]
[356711552,1743000663944,-246.29283113,0.00028493,2]
[356711553,1743000663954,-500.0,0.00028493,2]
[356711554,1743000663964,-581.86054341,0.00028493,2]
[356711555,1743000663974,-500.0,0.00028493,2]
[356711556,1743000663984,-464.47235632,0.00028493,2]
[356711557,1743000663994,-513.61,0.00028493,2]
[356711558,1743000664004,-1360.65,0.00028493,2]
[356711559,1743000664014,-500.0,0.00028493,2]
[356711560,1743000664025,-474.91229388,0.00028493,2]
[356711561,1743000664035,-486.77434909,0.00028493,2]
[356711562,1743000664045,-500.0,0.00028493,2]
[356711563,1743000664055,-500.0,0.00028493,2]
[356711564,1743000664064,-500.0,0.00028493,2]
[356711565,1743000664074,-500.0,0.00028493,2]
[356711566,1743000664083,-1415.07,0.00028493,2]
[356711567,1743000664093,-5712.77,0.00028493,2]
[356711568,1743000664102,-538.13,0.00028493,2]
[356711569,1743000664112,-500.0,0.00028493,2]
[356711570,1743000664122,-500.0,0.00028493,2]
[356711571,1743000664132,-245.74252341,0.00028493,2]
[356711572,1743000664142,-522.25514885,0.00028493,2]
[356711573,1743000664151,-500.0,0.00028493,2]
[356711574,1743000664161,-299.14279631,0.00028493,2]
[356711575,1743000664171,-500.0,0.00028493,2]
[356711576,1743000664181,-296.27601732,0.00028493,2]
[356711577,1743000664191,-500.0,0.00028493,2]
[356711578,1743000664201,-500.0,0.00028493,2]
[356711579,1743000664211,-592.75,0.00028493,2]
[356711580,1743000664221,-500.0,0.00028493,2]
[356711581,1743000664231,-500.0,0.00028493,2]
[356711582,1743000664241,-500.0,0.00028493,2]
[356711583,1743000664251,-648.2163416,0.00028493,2]
[356711584,1743000664260,-500.0,0.00028493,2]
[356711585,1743000664269,-500.0,0.00028493,2]
[356711586,1743000664278,-500.0,0.00028493,2]
[356711587,1743000664287,-634.70010097,0.00028493,2]
[356711588,1743000664297,-500.0,0.00028493,2]
[356711589,1743000664307,-500.0,0.00028493,2]
[356711590,1743000664317,-4204.32,0.00028493,2]
[356711591,1743000664327,-520.06768263,0.00028493,2]
[356711592,1743000664338,-500.0,0.00028493,2]
[356711593,1743000664349,-500.0,0.00028493,2]
[356711594,1743000664359,-1779.41459471,0.00028493,2]
[356711595,1743000664372,-5283.57441446,0.00028493,2]
[356711596,1743000664383,-581.28277697,0.00028493,2]
[356711613,1743001831815,-500.2180785,0.00014563,2]
[356711614,1743001831829,-1044.84070766,0.00014563,2]
[356711615,1743001831915,-765.31121384,0.00014563,2]
[356711616,1743001831924,-379.0,0.000247,5]
[356711617,1743001831935,-595.75,0.00024738,2]
[356711618,1743001831946,-212.522252,0.0002587,2]
[356711619,1743001831956,-175.55,0.00026321,2]
[356711620,1743001831966,-187.88,0.00026366,120]
[356711621,1743001831976,-267.16,0.00026366,2]
[356711622,1743001831987,-1158.01906302,0.00026415,2]
[356711623,1743001831998,-2989.57778966,0.00026415,2]
[356711624,1743001832045,-17853.00072888,0.00026415,2]
[356711637,1743001837602,-939.85,0.00026415,2]
[356711638,1743001837614,-435.697122,0.00026415,2]
[356711639,1743001837790,-435.66781424,0.00026415,2]
[356711640,1743001837801,-88.1874822,0.00026415,2]
[356711641,1743001837811,-150.0,0.00026456,2]
[356711642,1743001837820,-153.53,0.00026597,30]
[356711643,1743001837829,-250.0,0.00026598,2]
[356711644,1743001837839,-150.0,0.00026682,7]
[356711645,1743001837848,-211.49,0.00026849,2]
[356711646,1743001837857,-1000.0,0.00026864,2]
[356711647,1743001837866,-426.54519849,0.000269,4]
[356711648,1743001837876,-200.0,0.00026911,2]
[356711649,1743001837887,-595.75,0.00027002,2]
[356711650,1743001837896,-463.3954,0.00027297,2]
[356711651,1743001837906,-414.9285,0.00027297,2]
[356711652,1743001837915,-150.0,0.00027347,2]
[356711653,1743001837924,-442.5,0.00027348,2]
[356711654,1743001837934,-594.931,0.00027373,16]
[356711655,1743001837943,-511.26776421,0.00027397,2]
[356711656,1743001837952,-502.20539526,0.00027397,2]
[356711657,1743001837961,-512.65501081,0.00027397,2]
[356711658,1743001837971,-512.22225595,0.00027397,2]
[356711659,1743001837980,-509.33860699,0.00027397,2]
[356711660,1743001837990,-500.0,0.00027397,2]
[356711661,1743001837999,-511.96303437,0.00027397,2]
[356711662,1743001838009,-308.79533628,0.00027397,2]
[356711663,1743001838018,-512.66059319,0.00027397,2]
[356711664,1743001838028,-513.04905906,0.00027397,2]
[356711665,1743001838037,-500.0,0.00027397,2]
[356711666,1743001838047,-508.55408458,0.00027397,2]
[356711667,1743001838056,-513.0069982,0.00027397,2]
[356711668,1743001838065,-264.0610846,0.00027397,2]
[356711669,1743001838075,-507.37518124,0.00027397,2]
[356711670,1743001838084,-508.42633721,0.00027397,2]
[356711671,1743001838093,-511.36205054,0.00027397,2]
[356711672,1743001838103,-523.71811273,0.00027397,2]
[356711673,1743001838112,-500.0,0.00027397,2]
[356711674,1743001838121,-500.0,0.00027397,2]
[356711675,1743001838131,-500.0,0.00027397,2]
[356711676,1743001838141,-500.0,0.00027397,2]
[356711677,1743001838150,-637.40405054,0.00027397,2]
[356711679,1743001838159,-507.30461518,0.00027397,2]
[356711680,1743001838169,-502.39321222,0.00027397,2]
[356711681,1743001838178,-500.0,0.00027397,2]
[356711682,1743001838187,-500.0,0.00027397,2]
[356711683,1743001838197,-500.0,0.00027397,2]
[356711684,1743001838206,-500.0,0.00027397,2]
[356711685,1743001838215,-500.0,0.00027397,2]
[356711686,1743001838226,-500.0,0.00027397,2]
[356711687,1743001838235,-317.41043403,0.00027397,2]
[356711688,1743001838244,-2178.02,0.00027397,2]
[356711689,1743001838253,-1076.59,0.00027397,2]
[356711690,1743001838263,-500.0,0.00027397,2]
[356711691,1743001838272,-500.0,0.00027397,2]
[356711692,1743001838282,-500.0,0.00027397,2]
[356711693,1743001838291,-500.0,0.00027397,2]
[356711694,1743001838301,-500.0,0.00027397,2]
[356711695,1743001838311,-500.0,0.00027397,2]
[356711696,1743001838320,-500.0,0.00027397,2]
[356711697,1743001838329,-500.0,0.00027397,2]
[356711698,1743001838338,-210.37,0.00027397,2]
[356711699,1743001838347,-1500.0,0.00027397,60]
[356711700,1743001838358,-150.0,0.00027493,2]
[356711701,1743001838368,-181.87,0.0002756,2]
[356711702,1743001838378,-305.3513,0.0002756,2]
[356711703,1743001838387,-569.69309084,0.00027561,13]
[356711704,1743001838397,-15337.3488,0.00027569,2]
[356711705,1743001838406,-7662.74033875,0.0002757,2]
[356711706,1743001838416,-500.0,0.00027571,2]
[356711707,1743001838425,-16676.7287037,0.00027659,3]
[356711708,1743001838435,-514.66971437,0.0002766,2]
[356711709,1743001838444,-500.0,0.0002766,2]
[356711710,1743001838454,-500.0,0.0002766,2]
[356711711,1743001838464,-505.06137747,0.0002766,2]
[356711712,1743001838473,-500.0,0.0002766,2]
[356711713,1743001838483,-500.0,0.0002766,2]
[356711714,1743001838493,-500.0,0.0002766,2]
[356711715,1743001838503,-500.0,0.0002766,2]
[356711716,1743001838512,-510.15897088,0.0002766,2]
[356711717,1743001838522,-581.77973949,0.0002766,2]
[356711718,1743001838531,-574.29721337,0.0002766,2]
[356711719,1743001838541,-500.0,0.0002766,2]
[356711720,1743001838550,-609.56376205,0.0002766,2]
[356711721,1743001838560,-555.49080258,0.0002766,2]
[356711722,1743001838569,-549.89312391,0.0002766,2]
[356711723,1743001838578,-572.1922874,0.0002766,2]
[356711724,1743001838587,-736.18,0.0002766,2]
[356711725,1743001838597,-172.77939717,0.0002766,2]
[356711726,1743001838607,-565.66613768,0.0002766,2]
[356711727,1743001838616,-511.62392667,0.0002766,2]
[356711728,1743001838626,-500.0,0.0002766,2]
[356711729,1743001838635,-500.0,0.0002766,2]
[356711730,1743001838645,-568.3754992,0.0002766,2]
[356711731,1743001838654,-602.96835477,0.0002766,2]
[356711732,1743001838664,-500.0,0.0002766,2]
[356711733,1743001838673,-632.57,0.0002766,2]
[356711734,1743001838683,-500.0,0.0002766,2]
[356711735,1743001838692,-549.28137856,0.0002766,2]
[356711736,1743001838701,-518.54183236,0.0002766,2]
[356711737,1743001838711,-226.76581624,0.0002766,2]
[356711738,1743001838721,-163.49663821,0.0002766,2]
[356711739,1743001838732,-596.57713996,0.0002766,2]
[356711740,1743001838741,-552.20550246,0.0002766,2]
[356711741,1743001838751,-500.0,0.0002766,2]
[356711742,1743001838761,-500.0,0.0002766,2]
[356711743,1743001838770,-516.57631005,0.0002766,2]
[356711744,1743001838780,-500.0,0.0002766,2]
[356711745,1743001838789,-619.68190578,0.0002766,2]
[356711746,1743001838798,-2.39677167,0.0002766,2]
[356711747,1743001838812,-507.28471068,0.0002766,2]
[356711748,1743001838822,-638.21319848,0.0002766,2]
[356711749,1743001838832,-500.0,0.0002766,2]
[356711750,1743001838842,-95.10209084,0.0002766,2]
[356711751,1743001838866,-404.89790916,0.0002766,2]
[356711752,1743001838876,-520.8751059,0.0002766,2]
[356711753,1743001838890,-161.72698344,0.0002766,2]
[356711754,1743001838901,-338.27301656,0.0002766,2]
[356711755,1743001838911,-500.0,0.0002766,2]
[356711756,1743001838921,-282.66678704,0.0002766,2]
[356711757,1743001838931,-500.0,0.0002766,2]
[356711758,1743001838941,-500.0,0.0002766,2]
[356711759,1743001838950,-500.0,0.0002766,2]
[356711760,1743001838960,-500.0,0.0002766,2]
[356711761,1743001838970,-500.0,0.0002766,2]
[356711762,1743001838980,-500.0,0.0002766,2]
[356711763,1743001838989,-235.8101964,0.0002766,2]
[356711764,1743001839001,-284.16893782,0.0002766,2]
[356711765,1743001839010,-500.0,0.0002766,2]
[356711766,1743001839020,-545.71289629,0.0002766,2]
[356711767,1743001839030,-154.99818589,0.0002766,2]
[356711769,1743001839966,-604.4748,0.0002756,2]
[356711770,1743001839976,-345.00181411,0.0002766,2]
[356711771,1743001839987,-118.27254004,0.0002766,2]
[356711772,1743001839998,-381.72745996,0.0002766,2]
[356711773,1743001840008,-168.37000702,0.0002766,2]
[356711774,1743001840203,-331.62999298,0.0002766,2]
[356711775,1743001840213,-500.0,0.0002766,2]
[356711776,1743001840222,-453.46838139,0.0002766,2]
[356711777,1743001840521,-46.53161861,0.0002766,2]
[356711778,1743001840530,-500.0,0.0002766,2]
[356711779,1743001840540,-500.0,0.0002766,2]
[356711780,1743001840549,-500.0,0.0002766,2]
[356711781,1743001840559,-500.0,0.0002766,2]
[356711782,1743001840569,-500.0,0.0002766,2]
[356711783,1743001840578,-500.0,0.0002766,2]
[356711784,1743001840589,-500.0,0.0002766,2]
[356711785,1743001840599,-500.0,0.0002766,2]
[356711786,1743001840608,-227.64869139,0.0002766,2]
[356711787,1743001840621,-272.35130861,0.0002766,2]
[356711788,1743001840630,-500.0,0.0002766,2]
[356711789,1743001840640,-500.0,0.0002766,2]
[356711790,1743001840649,-386.70433902,0.0002766,2]
[356711801,1743001842832,-113.29566098,0.0002766,2]
[356711803,1743001842843,-500.0,0.0002766,2]